bitfinex/quotes_BTCUSD_20240617
["timestamp","ask_amount","ask_price","bid_price","bid_amount"]
[1718649164414,0.00085,67151.0,67146.0,0.02]
[1718649164616,0.00085,67151.0,67146.0,0.148928]
[1718649165110,0.00085,67151.0,67145.0,0.02]
[1718649165305,0.00085,67151.0,67147.0,0.148926]
[1718649165532,0.00085,67151.0,67150.0,0.02]
[1718649165737,0.00085,67151.0,67150.0,0.7646]
[1718649165932,0.00085,67151.0,67150.0,1.06244]
[1718649165933,0.01285,67151.0,67150.0,1.06244]
[1718649166338,0.00085,67151.0,67150.0,0.7646]
[1718649166540,0.01485,67151.0,67150.0,1.06244]
[1718649166713,0.02685,67151.0,67150.0,1.06244]
[1718649166900,0.01485,67151.0,67150.0,0.7646]
[1718649167325,0.02685,67151.0,67150.0,0.021]
[1718649167543,0.02685,67151.0,67150.0,0.16992]
[1718649167735,0.01485,67151.0,67150.0,0.46676]
[1718649168341,0.00085,67151.0,67150.0,0.7646]
[1718649168762,0.00085,67151.0,67150.0,0.14892]
[1718649168966,0.00085,67151.0,67150.0,0.46676]
[1718649169163,0.00085,67151.0,67150.0,0.7646]
[1718649169375,0.01285,67151.0,67150.0,0.7656]
[1718649169694,0.01285,67151.0,67150.0,1.06344]
[1718649169925,0.02685,67151.0,67150.0,0.7656]
[1718649170129,0.02685,67151.0,67150.0,0.001]
[1718649171033,0.01285,67151.0,67150.0,0.001]
[1718649171455,0.02685,67151.0,67150.0,0.001]
[1718649172424,0.06973236,67151.0,67150.0,0.001]
[1718649172630,0.02685,67151.0,67150.0,0.14992]
[1718649172834,0.02685,67151.0,67150.0,0.44776]
[1718649172995,0.02685,67151.0,67150.0,0.14992]
[1718649173423,0.02685,67151.0,67150.0,0.001]
[1718649175552,0.02685,67151.0,67150.0,0.46776]
[1718649175755,0.02685,67151.0,67150.0,0.44776]
[1718649175897,0.02685,67151.0,67150.0,0.16992]
[1718649176580,0.02685,67151.0,67150.0,0.46776]
[1718649176727,0.02685,67151.0,67150.0,0.44776]
[1718649176964,0.02685,67151.0,67150.0,0.7656]
[1718649177125,0.02685,67151.0,67150.0,1.64134]
[1718649177328,0.02685,67151.0,67150.0,1.3435]
[1718649177745,0.02685,67151.0,67150.0,1.64134]
[1718649178147,0.02685,67151.0,67150.0,1.3435]
[1718649178552,0.02685,67151.0,67150.0,1.04566]
[1718649178935,0.02685,67151.0,67150.0,1.3435]
[1718649180277,0.02685,67151.0,67150.0,1.79406888]
[1718649180478,0.02685,67151.0,67150.0,1.19838888]
[1718649180635,0.02685,67151.0,67150.0,0.89674]
[1718649180834,0.02685,67151.0,67150.0,1.19838888]
[1718649181040,0.02685,67151.0,67150.0,1.79406888]
[1718649181263,0.02685,67151.0,67150.0,2.10190888]
[1718649181630,0.02685,67151.0,67150.0,1.79406888]
[1718649182090,0.02685,67151.0,67150.0,1.49622888]
[1718649182765,0.01485,67151.0,67150.0,1.79306888]
[1718649182963,0.00085,67151.0,67150.0,1.79306888]
[1718649183192,0.00085,67151.0,67150.0,1.80306888]
[1718649183413,0.00185,67151.0,67150.0,1.80506888]
[1718649184873,0.00285,67151.0,67150.0,1.81906888]
[1718649185674,0.00285,67151.0,67150.0,2.21890888]
[1718649186082,0.04449546,67185.0,67175.0,0.02]
[1718649186237,0.45558432,67176.0,67175.0,0.148864]
[1718649186454,0.04449546,67187.0,67175.0,0.02]
[1718649186661,0.04237335,67186.0,67175.0,0.168864]
[1718649186946,0.04237335,67186.0,67176.0,0.02]
[1718649187123,0.08686881,67186.0,67174.0,0.02]
[1718649187369,0.0421425,67185.0,67172.0,0.297743]
[1718649187537,0.014,67185.0,67174.0,0.02]
[1718649187752,0.0421425,67184.0,67175.0,0.02]
[1718649187941,0.1,67186.0,67179.0,0.02]
[1718649188359,0.1,67186.0,67178.0,0.297714]
[1718649188360,0.1,67186.0,67178.0,0.02]
[1718649188561,0.1,67186.0,67181.0,0.02]
[1718649188771,0.03181419,67188.0,67177.0,0.297717]
[1718649188772,0.03181419,67188.0,67180.0,0.02]
[1718649188971,0.03181419,67188.0,67181.0,0.02]
[1718649189125,0.03181419,67188.0,67180.0,0.02]
[1718649189497,0.00855,67188.0,67187.0,0.168838]
[1718649189630,0.00855,67188.0,67187.0,0.466514]
[1718649189838,0.00855,67188.0,67180.0,0.02]
[1718649190024,0.011,67186.0,67180.0,0.02]
[1718649190227,0.011,67186.0,67181.0,0.02]
[1718649190436,0.011,67186.0,67182.0,0.02]
[1718649190643,0.0029,67184.0,67178.0,0.001]
[1718649190845,0.01751789,67183.0,67178.0,0.001]
[1718649191050,0.0029,67184.0,67178.0,0.001]
[1718649191291,0.0029,67184.0,67172.0,0.297742]
[1718649191549,0.0029,67184.0,67180.0,0.07693072]
[1718649191707,0.01955,67188.0,67183.0,0.29769]
[1718649191932,0.01955,67188.0,67181.0,0.2546]
[1718649192172,0.01955,67188.0,67181.0,0.148849]
[1718649192568,0.01955,67188.0,67182.0,0.07593072]
[1718649192800,0.01955,67188.0,67178.0,0.02]
[1718649192984,0.00855,67188.0,67183.0,0.001]
[1718649193421,0.0174467,67187.0,67183.0,0.001]
[1718649193755,0.00855,67188.0,67185.0,0.148842]
[1718649193960,0.00855,67188.0,67183.0,0.021]
[1718649194176,0.00855,67188.0,67185.0,0.148842]
[1718649194379,0.00855,67188.0,67183.0,0.319691]
[1718649194380,0.00855,67188.0,67183.0,0.021]
[1718649194604,0.00855,67188.0,67183.0,0.001]
[1718649194948,0.0029,67186.0,67181.0,0.001]
[1718649195134,0.31969877,67185.0,67171.0,0.02]
[1718649195346,0.31969877,67185.0,67171.0,0.168872]
[1718649195547,0.31969877,67185.0,67170.0,0.07593072]
[1718649195548,0.14886,67178.0,67170.0,0.07593072]
[1718649195783,0.17085577,67185.0,67170.0,0.07593072]
[1718649195970,0.0029,67186.0,67173.0,0.02]
[1718649196142,0.0029,67186.0,67181.0,0.001]
[1718649196342,0.151741,67186.0,67185.0,0.001]
[1718649196550,0.251741,67186.0,67185.0,0.001]
[1718649196747,0.549422,67186.0,67185.0,0.001]
[1718649197106,0.297693,67184.0,67170.0,0.07593072]
[1718649197336,0.148854,67180.0,67173.0,0.001]
[1718649197508,0.33594343,67186.0,67173.0,0.001]
[1718649197509,0.148851,67182.0,67173.0,0.001]
[1718649197662,0.15272888,67181.0,67173.0,0.001]
[1718649198272,0.30158188,67181.0,67168.0,0.016]
[1718649198474,0.05992799,67180.0,67170.0,0.07593072]
[1718649198670,0.20878199,67180.0,67173.0,0.001]
[1718649199097,0.05992799,67180.0,67170.0,0.07593072]
[1718649199257,0.05992799,67180.0,67173.0,0.001]
[1718649199458,0.06078799,67180.0,67173.0,0.001]
[1718649199668,0.148866,67175.0,67173.0,0.001]
[1718649199872,0.06600669,67179.0,67173.0,0.001]
[1718649200074,0.00086,67180.0,67173.0,0.001]
[1718649200893,0.00086,67180.0,67170.0,0.07593072]
[1718649201291,0.00086,67180.0,67173.0,0.001]
[1718649201292,0.00286,67180.0,67173.0,0.001]
[1718649201498,0.148857,67179.0,67173.0,0.002]
[1718649201756,0.01386,67180.0,67173.0,0.002]
[1718649201994,0.148858,67178.0,67173.0,0.001]
[1718649202206,0.15272888,67177.0,67163.0,0.33573072]
[1718649202442,0.0029,67174.0,67170.0,0.001]
[1718649202657,0.05533539,67173.0,67170.0,0.001]
[1718649202867,0.05533539,67173.0,67170.0,0.002]
[1718649203802,0.05533539,67173.0,67170.0,0.001]
[1718649204361,0.0029,67174.0,67170.0,0.001]
[1718649204789,0.0029,67174.0,67165.0,0.016]
[1718649205198,0.151767,67174.0,67173.0,0.001]
[1718649205419,0.0029,67174.0,67163.0,0.09193072]
[1718649205624,0.014,67173.0,67170.0,0.1318]
[1718649205795,0.04184939,67172.0,67170.0,0.1328]
[1718649205998,0.04184939,67172.0,67170.0,0.1318]
[1718649206788,0.014,67173.0,67171.0,0.09193072]
[1718649207172,0.014,67174.0,67171.0,0.09193072]
[1718649207389,0.0510087,67174.0,67171.0,0.07593072]
[1718649207532,0.028,67174.0,67171.0,0.07593072]
[1718649207736,0.042,67174.0,67171.0,0.07593072]
[1718649207939,0.0422,67174.0,67171.0,0.07593072]
[1718649208102,0.0142,67174.0,67171.0,0.07593072]
[1718649208341,0.014,67173.0,67171.0,0.07593072]
[1718649208569,0.014,67173.0,67170.0,0.1318]
[1718649208777,0.0282,67174.0,67170.0,0.1318]
[1718649208978,0.01282,67173.0,67170.0,0.1318]
[1718649210787,0.028,67174.0,67170.0,0.1318]
[1718649210986,0.014,67174.0,67170.0,0.1318]
[1718649211261,0.014,67173.0,67170.0,0.1318]
[1718649211485,0.028,67173.0,67171.0,0.001]
[1718649211689,0.014,67173.0,67171.0,0.001]
[1718649211897,0.251757,67179.0,67170.0,0.1318]
[1718649212092,0.014,67174.0,67170.0,0.1318]
[1718649212328,0.028,67174.0,67170.0,0.1328]
[1718649212529,0.014,67174.0,67171.0,0.07593072]
[1718649212730,0.014,67174.0,67172.0,0.5649]
[1718649212986,0.014,67173.0,67172.0,0.5649]
[1718649213367,0.014,67174.0,67173.0,0.016]
[1718649213568,0.02423712,67180.0,67173.0,0.016]
[1718649213772,0.03000053,67179.0,67172.0,0.5649]
[1718649213977,0.014,67173.0,67172.0,0.5649]
[1718649214555,0.03000053,67179.0,67172.0,0.5809]
[1718649215191,0.03823712,67180.0,67179.0,0.148856]
[1718649215386,0.02423712,67180.0,67179.0,0.148856]
[1718649215594,0.02423712,67180.0,67179.0,0.76028]
[1718649215851,0.00086,67180.0,67179.0,0.76028]
[1718649216178,0.00086,67180.0,67179.0,1.627192]
[1718649216737,0.01486,67180.0,67179.0,1.33048]
[1718649216937,0.00086,67180.0,67179.0,1.32948]
[1718649217329,0.01486,67180.0,67179.0,1.33048]
[1718649217891,0.01486,67180.0,67179.0,1.628192]
[1718649218442,0.01486,67180.0,67179.0,1.78092088]
[1718649218670,0.02886,67180.0,67179.0,1.78092088]
[1718649219114,0.02886,67180.0,67179.0,1.79092088]
[1718649219714,0.02886,67180.0,67179.0,1.78092088]
[1718649219920,0.02886,67180.0,67179.0,1.79092088]
[1718649220122,0.02886,67180.0,67179.0,1.78092088]
[1718649220324,0.02886,67180.0,67179.0,1.79092088]
[1718649220472,0.02886,67180.0,67179.0,1.78092088]
[1718649221862,0.01486,67180.0,67179.0,1.78092088]
[1718649222024,0.01886,67180.0,67179.0,1.78092088]
[1718649222647,0.00086,67180.0,67179.0,1.77992088]
[1718649222984,0.00086,67180.0,67179.0,0.5692]
[1718649222985,0.00386,67180.0,67179.0,0.5692]
[1718649223185,0.00386,67180.0,67179.0,0.734056]
[1718649223770,0.00486,67180.0,67179.0,0.732056]
[1718649224169,0.00486,67180.0,67179.0,1.051768]
[1718649224170,0.00586,67180.0,67179.0,1.051768]
[1718649224373,0.00586,67180.0,67179.0,1.647192]
[1718649224741,0.00586,67180.0,67179.0,1.34948]
[1718649224980,0.00586,67180.0,67179.0,1.051768]
[1718649225190,0.00586,67180.0,67179.0,1.647192]
[1718649225384,0.00586,67180.0,67179.0,1.79992088]
[1718649228288,0.00586,67180.0,67179.0,0.02]
[1718649228607,0.00586,67180.0,67179.0,0.78028]
[1718649228939,0.00586,67180.0,67179.0,0.184856]
[1718649229169,0.00586,67180.0,67179.0,0.482568]
[1718649229363,0.00586,67180.0,67179.0,0.78028]
[1718649229990,0.00586,67180.0,67179.0,0.184856]
[1718649230352,0.00586,67180.0,67179.0,0.482568]
[1718649230749,0.00586,67180.0,67179.0,0.78028]
[1718649231153,0.00586,67180.0,67179.0,0.184856]
[1718649231354,0.00586,67180.0,67179.0,0.482568]
[1718649231971,0.00586,67180.0,67179.0,0.78028]
[1718649232191,0.00586,67180.0,67179.0,0.93300888]
[1718649232597,0.00586,67180.0,67179.0,0.63529688]
[1718649232817,0.00586,67180.0,67179.0,0.18966388]
[1718649233214,0.00586,67180.0,67179.0,0.483503]
[1718649233829,0.00586,67180.0,67179.0,0.781215]
[1718649234056,0.00586,67180.0,67179.0,0.483503]
[1718649235659,0.00586,67180.0,67179.0,0.781215]
[1718649235864,0.00586,67180.0,67179.0,1.082515]
[1718649236113,0.00586,67180.0,67179.0,1.45254388]
[1718649236326,0.00855,67188.0,67187.0,1.32359]
[1718649237279,0.00855,67188.0,67187.0,1.48631888]
[1718649237675,0.00855,67188.0,67187.0,1.47631888]
[1718649237896,0.02055,67188.0,67187.0,1.78499488]
[1718649238189,0.02055,67188.0,67187.0,1.77499488]
[1718649238407,0.02055,67188.0,67187.0,1.99179488]
[1718649238613,0.2715,67200.0,67189.0,1.328367]
[1718649238941,0.2715,67200.0,67189.0,1.77876288]
[1718649239153,0.2715,67200.0,67189.0,1.76876288]
[1718649239372,0.2715,67200.0,67189.0,1.47109588]
[1718649239543,0.2715,67200.0,67189.0,0.87576188]
[1718649239695,0.2715,67200.0,67189.0,0.72692888]
[1718649239903,0.2715,67200.0,67189.0,1.47109588]
[1718649240098,0.2715,67200.0,67189.0,1.76876288]
[1718649240311,0.2715,67200.0,67189.0,1.47109588]
[1718649241569,0.00354,67190.0,67189.0,1.47109588]
[1718649241777,0.00454,67190.0,67189.0,0.014]
[1718649242072,0.00454,67190.0,67189.0,0.03]
[1718649242228,0.0130626,67196.0,67190.0,0.01]
[1718649242473,0.0130626,67196.0,67195.0,0.462461]
[1718649242671,0.0130626,67196.0,67195.0,0.760102]
[1718649242894,0.0130626,67196.0,67195.0,0.40202]
[1718649243295,0.0130626,67196.0,67191.0,0.15272888]
[1718649243496,0.0130626,67196.0,67190.0,0.017]
[1718649243721,0.0130626,67196.0,67190.0,0.001]
[1718649243897,0.0130626,67196.0,67191.0,0.016]
[1718649244098,0.0130626,67196.0,67194.0,0.016]
[1718649244299,0.0130626,67196.0,67192.0,0.07593072]
[1718649244300,0.0130626,67196.0,67195.0,0.016]
[1718649244503,0.0130626,67196.0,67194.0,0.016]
[1718649245425,0.0200626,67196.0,67195.0,0.761102]
[1718649245613,0.0200626,67196.0,67195.0,1.53467188]
[1718649245815,0.0130626,67196.0,67195.0,1.23603088]
[1718649246174,0.0130626,67196.0,67195.0,1.79307188]
[1718649246356,0.0190626,67196.0,67195.0,1.49543088]
[1718649246946,0.0130626,67196.0,67195.0,1.49543088]
[1718649247541,0.0130626,67196.0,67195.0,0.75132888]
[1718649247740,0.0130626,67196.0,67195.0,1.19778988]
[1718649247953,0.0130626,67196.0,67195.0,0.5986]
[1718649248154,0.0130626,67196.0,67195.0,0.016]
[1718649248355,0.0130626,67196.0,67195.0,0.017]
[1718649248775,0.0130626,67196.0,67195.0,0.001]
[1718649249128,0.0200626,67196.0,67195.0,0.018]
[1718649250095,0.0200626,67196.0,67195.0,0.68975569]
[1718649250269,0.0200626,67196.0,67195.0,1.27908495]
[1718649250468,0.0200626,67196.0,67195.0,1.73968495]
[1718649250887,0.0200626,67196.0,67195.0,1.67307188]
[1718649251210,0.0200626,67196.0,67195.0,1.97647188]
[1718649251419,0.0200626,67196.0,67195.0,2.28411288]
[1718649251597,0.0200626,67196.0,67195.0,1.98647188]
[1718649252620,0.0200626,67196.0,67195.0,1.98547188]
[1718649253028,0.0200626,67196.0,67195.0,1.99947188]
[1718649253224,0.00854,67197.0,67196.0,1.467362]
[1718649253429,0.00854,67197.0,67196.0,2.23999088]
[1718649254278,0.2715,67200.0,67199.0,1.572103]
[1718649254465,0.00854,67219.0,67199.0,1.572103]
[1718649254466,0.05354,67218.0,67217.0,0.462314]
[1718649254658,0.05354,67218.0,67217.0,0.91258588]
[1718649255024,0.05354,67218.0,67217.0,0.31749988]
[1718649255139,0.05354,67218.0,67217.0,0.16872888]
[1718649255504,0.05354,67218.0,67217.0,0.61504288]
[1718649255674,0.05354,67218.0,67217.0,0.91258588]
[1718649255875,0.05354,67218.0,67217.0,1.21012888]
[1718649256446,0.05354,67218.0,67217.0,1.79232888]
[1718649256649,0.00787815,67224.0,67223.0,0.619075]
[1718649256866,0.00787815,67224.0,67223.0,2.20903788]
[1718649257068,0.00787815,67224.0,67223.0,2.51655488]
[1718649257211,0.02720971,67237.0,67223.0,1.96465488]
[1718649257411,0.02720971,67237.0,67233.0,1.11303872]
[1718649257678,0.04232181,67234.0,67233.0,1.5732396]
[1718649257879,0.04232181,67234.0,67233.0,1.8607116]
[1718649257880,0.02,67234.0,67233.0,1.8607116]
[1718649258086,0.02,67234.0,67233.0,2.0775116]
[1718649258242,0.02,67234.0,67233.0,2.4999836]
[1718649258442,0.55,67250.0,67247.0,1.334427]
[1718649258763,0.55,67250.0,67247.0,1.79456688]
[1718649258897,0.55,67250.0,67247.0,2.53907788]
[1718649259068,0.55,67250.0,67249.0,1.273707]
[1718649259069,0.54355,67250.0,67249.0,1.273707]
[1718649259282,0.00137814,67253.0,67249.0,1.273707]
[1718649259283,0.00137814,67253.0,67252.0,0.678882]
[1718649259535,0.00137814,67253.0,67252.0,2.18708688]
[1718649259721,0.00137814,67253.0,67252.0,1.67239888]
[1718649259859,0.00855,67258.0,67257.0,1.20788832]
[1718649260225,0.00855,67258.0,67257.0,1.2805512]
[1718649260522,0.00855,67264.0,67262.0,0.62445532]
[1718649260722,0.00855,67264.0,67262.0,1.0344842]
[1718649260878,0.00855,67264.0,67262.0,0.3816682]
[1718649261096,0.00855,67264.0,67260.0,0.01163932]
[1718649261293,0.00855,67264.0,67262.0,0.01163932]
[1718649261491,0.00855,67264.0,67262.0,0.4617122]
[1718649261856,0.00855,67264.0,67262.0,0.1643682]
[1718649261975,0.00855,67264.0,67262.0,0.15272888]
[1718649262176,0.00855,67264.0,67262.0,0.3130402]
[1718649262375,0.00855,67264.0,67262.0,0.1643682]
[1718649262681,0.00855,67264.0,67262.0,0.6103842]
[1718649262888,0.00855,67264.0,67262.0,1.2050722]
[1718649263104,0.00855,67264.0,67262.0,0.001]
[1718649263316,0.1621926,67263.0,67262.0,0.001]
[1718649263507,0.2678226,67263.0,67262.0,0.001]
[1718649263923,0.0135226,67263.0,67262.0,0.001]
[1718649264300,0.1621926,67263.0,67262.0,0.001]
[1718649264503,0.7628726,67263.0,67262.0,0.002]
[1718649264699,1.6189126,67263.0,67262.0,0.002]
[1718649265057,1.7129126,67263.0,67262.0,0.001]
[1718649265398,1.8189126,67263.0,67262.0,0.002]
[1718649265620,0.1,67256.0,67233.0,0.07593072]
[1718649265830,1.38044048,67263.0,67233.0,0.07593072]
[1718649265831,0.11,67255.0,67242.0,0.45558432]
[1718649266107,0.5917,67248.0,67231.0,0.0008]
[1718649266237,0.297436,67242.0,67232.0,0.45558432]
[1718649266585,0.1,67247.0,67238.0,0.01163932]
[1718649266785,0.1,67247.0,67234.0,0.01163932]
[1718649266897,0.1,67247.0,67238.0,0.01163932]
[1718649267099,0.1,67247.0,67235.0,0.01163932]
[1718649267521,0.297439,67241.0,67233.0,0.07093072]
[1718649267726,0.297424,67245.0,67233.0,0.07093072]
[1718649268177,0.148722,67240.0,67233.0,0.07093072]
[1718649268383,0.148723,67239.0,67238.0,0.001]
[1718649268624,0.148718,67242.0,67238.0,0.001]
[1718649268843,0.297439,67241.0,67233.0,0.06593072]
[1718649269213,0.297468,67234.0,67231.0,0.0008]
[1718649269376,0.148734,67234.0,67231.0,0.0008]
[1718649269591,0.1,67244.0,67231.0,0.0008]
[1718649269780,0.61381544,67248.0,67232.0,0.07693072]
[1718649269781,0.297448,67239.0,67232.0,0.07693072]
[1718649269986,0.297416,67246.0,67231.0,0.0008]
[1718649269987,0.2173,67244.0,67231.0,0.0008]
[1718649270182,0.297465,67235.0,67231.0,0.0008]
[1718649270713,0.446215,67232.0,67231.0,0.0008]
[1718649271132,0.148738,67232.0,67231.0,0.0008]
[1718649271333,0.297472,67233.0,67231.0,0.0008]
[1718649271594,0.2532,67234.0,67231.0,0.0018]
[1718649271595,0.148738,67232.0,67231.0,0.0018]
[1718649271764,0.446215,67232.0,67231.0,0.0018]
[1718649272300,0.1,67232.0,67231.0,0.0008]
[1718649272501,0.14873,67236.0,67231.0,0.0008]
[1718649272630,0.3532,67240.0,67232.0,0.08757004]
[1718649272869,0.02271102,67241.0,67232.0,0.08757004]
[1718649272870,0.02271102,67241.0,67235.0,0.16037032]
[1718649273075,0.1,67245.0,67239.0,0.07593072]
[1718649273259,0.2466,67246.0,67239.0,0.07593072]
[1718649273260,0.2466,67246.0,67242.0,0.01163932]
[1718649273457,0.3261,67248.0,67240.0,0.01163932]
[1718649273718,0.3261,67248.0,67236.0,0.01163932]
[1718649273857,0.3261,67248.0,67239.0,0.01163932]
[1718649274066,0.3261,67248.0,67235.0,0.01163932]
[1718649274270,0.148728,67237.0,67234.0,0.01163932]
[1718649274471,0.34839945,67248.0,67238.0,0.01163932]
[1718649274702,0.34839945,67248.0,67232.0,0.07593072]
[1718649274703,0.1,67247.0,67236.0,0.01163932]
[1718649274933,0.446125,67246.0,67236.0,0.01163932]
[1718649275232,0.148714,67243.0,67236.0,0.01163932]
[1718649275904,0.148716,67242.0,67235.0,0.01163932]
[1718649276077,0.297425,67244.0,67235.0,0.01163932]
[1718649276323,0.297425,67244.0,67232.0,0.07593072]
[1718649276324,0.297433,67242.0,67233.0,0.01163932]
[1718649276507,0.114,67247.0,67233.0,0.01163932]
[1718649276792,0.148723,67239.0,67231.0,0.0008]
[1718649276997,0.014,67237.0,67231.0,0.0008]
[1718649277185,0.148723,67239.0,67234.0,0.01163932]
[1718649277774,0.148723,67239.0,67232.0,0.01163932]
[1718649277995,0.014,67243.0,67236.0,0.001]
[1718649278236,0.014,67243.0,67241.0,0.07593072]
[1718649278361,0.1,67247.0,67241.0,0.07593072]
[1718649278569,0.2466,67253.0,67245.0,0.148709]
[1718649278800,0.6534,67256.0,67248.0,0.148703]
[1718649279005,0.6534,67256.0,67245.0,0.297418]
[1718649279006,0.331,67256.0,67252.0,0.01163932]
[1718649279220,0.25,67259.0,67252.0,0.01163932]
[1718649279426,0.25,67259.0,67255.0,0.148686]
[1718649279932,0.33095,67264.0,67258.0,0.01163932]
[1718649280156,0.00855,67264.0,67262.0,0.30898332]
[1718649280530,0.00855,67264.0,67262.0,0.16031132]
[1718649280942,0.00855,67264.0,67262.0,0.01163932]
[1718649281569,0.00855,67264.0,67260.0,0.01163932]
[1718649281770,0.00855,67264.0,67262.0,0.01163932]
[1718649282175,0.0415226,67263.0,67262.0,0.01263932]
[1718649282386,0.0415226,67263.0,67262.0,0.001]
[1718649282603,0.0275226,67263.0,67262.0,0.01163932]
[1718649283054,0.0275226,67263.0,67262.0,0.45865532]
[1718649283055,0.0415226,67263.0,67262.0,0.45865532]
[1718649283248,0.0415226,67263.0,67262.0,0.01263932]
[1718649283486,0.0415226,67263.0,67262.0,0.001]
[1718649283694,0.4735326,67263.0,67262.0,0.001]
[1718649283896,0.07658586,67263.0,67262.0,0.001]
[1718649284065,0.09058586,67263.0,67262.0,0.001]
[1718649284641,0.09058586,67263.0,67248.0,0.297402]
[1718649284642,0.0135226,67263.0,67253.0,0.01163932]
[1718649284820,0.0415226,67263.0,67262.0,0.001]
[1718649284973,0.0275226,67263.0,67262.0,0.001]
[1718649285179,1.3941126,67263.0,67262.0,0.001]
[1718649285381,0.6148226,67263.0,67247.0,0.01163932]
[1718649285588,0.17319226,67262.0,67248.0,0.46722364]
[1718649285788,0.17319226,67262.0,67246.0,0.01163932]
[1718649286007,0.29738,67254.0,67243.0,0.01163932]
[1718649286176,0.297381,67254.0,67243.0,0.1643682]
[1718649286375,0.47054026,67262.0,67246.0,0.01163932]
[1718649286642,0.148679,67259.0,67247.0,0.07593072]
[1718649286809,0.41165117,67261.0,67247.0,0.07593072]
[1718649287017,0.11024629,67261.0,67248.0,0.01163932]
[1718649287177,0.11024629,67261.0,67253.0,0.148691]
[1718649287422,0.1,67262.0,67248.0,0.01163932]
[1718649287956,0.148682,67258.0,67248.0,0.01163932]
[1718649288330,0.1,67262.0,67250.0,0.01163932]
[1718649288544,0.014,67261.0,67250.0,0.01163932]
[1718649288801,0.148683,67257.0,67247.0,0.08757004]
[1718649289000,0.148675,67261.0,67247.0,0.23627404]
[1718649289194,0.1,67262.0,67247.0,0.23627404]
[1718649289195,0.40314087,67260.0,67247.0,0.07593072]
[1718649289396,0.014,67258.0,67248.0,0.001]
[1718649289599,0.162682,67258.0,67248.0,0.001]
[1718649289842,0.014,67258.0,67248.0,0.001]
[1718649290193,0.148701,67249.0,67248.0,0.001]
[1718649290388,0.14869,67254.0,67248.0,0.001]
[1718649290619,0.016269,67253.0,67248.0,0.001]
[1718649290796,0.297376,67255.0,67248.0,0.001]
[1718649290998,0.1,67254.0,67248.0,0.001]
[1718649291225,0.014,67261.0,67251.0,0.297392]
[1718649291422,0.014,67262.0,67257.0,0.16032032]
[1718649291623,0.1,67262.0,67258.0,0.14868]
[1718649292030,0.06248567,67261.0,67256.0,0.07593072]
[1718649292197,0.014,67261.0,67260.0,0.148676]
[1718649292433,0.04185671,67263.0,67260.0,0.148676]
[1718649292660,0.04185671,67263.0,67262.0,0.74336]
[1718649292876,0.0135226,67263.0,67262.0,0.75499932]
[1718649293086,0.0135226,67263.0,67262.0,1.2050722]
[1718649293525,0.0135226,67263.0,67262.0,1.5024162]
[1718649293846,0.0135226,67263.0,67262.0,1.2050722]
[1718649294344,0.0135226,67263.0,67262.0,1.1550722]
[1718649294640,0.0135226,67263.0,67262.0,0.16031132]
[1718649294943,0.0135226,67263.0,67262.0,0.30898332]
[1718649295146,0.0415226,67263.0,67262.0,0.45765532]
[1718649295304,0.0275226,67263.0,67262.0,0.75499932]
[1718649295514,0.0135226,67263.0,67262.0,0.45765532]
[1718649295716,0.0275226,67263.0,67262.0,0.45765532]
[1718649295913,0.04134365,67263.0,67262.0,0.45865532]
[1718649296146,0.02734365,67263.0,67262.0,0.45865532]
[1718649296853,0.02734365,67263.0,67262.0,0.75599932]
[1718649297152,0.02734365,67263.0,67262.0,0.45865532]
[1718649297773,0.04134365,67263.0,67262.0,0.45865532]
[1718649300084,0.04134365,67263.0,67262.0,0.75599932]
[1718649300298,0.04134365,67263.0,67262.0,0.45865532]
[1718649300508,0.04134365,67263.0,67262.0,0.01263932]
[1718649300740,0.04134365,67263.0,67262.0,0.16131132]
[1718649300975,0.04134365,67263.0,67262.0,0.6113842]
[1718649301223,0.04134365,67263.0,67262.0,1.2060722]
[1718649301438,0.04134365,67263.0,67262.0,1.5134162]
[1718649301602,0.04134365,67263.0,67262.0,2.0368162]
[1718649301819,0.04134365,67263.0,67262.0,1.7394722]
[1718649301982,0.01334365,67263.0,67262.0,1.7384722]
[1718649302400,0.02734365,67263.0,67262.0,1.7384722]
[1718649302606,0.02734365,67263.0,67262.0,1.9886722]
[1718649303047,0.02734365,67263.0,67262.0,1.9896722]
[1718649303048,0.04134365,67263.0,67262.0,1.9896722]
[1718649303293,0.04134365,67263.0,67262.0,2.2870162]
[1718649303503,0.04134365,67263.0,67262.0,1.9896722]
[1718649303834,0.04134365,67263.0,67262.0,2.4938162]
[1718649304040,0.04134365,67263.0,67262.0,2.5958162]
[1718649305037,0.04134365,67263.0,67262.0,2.4938162]
[1718649305204,0.02334365,67263.0,67262.0,2.5958162]
[1718649305408,0.00934365,67263.0,67262.0,2.5948162]
[1718649305991,0.00163208,67269.0,67263.0,2.15156932]
[1718649306238,0.00163208,67269.0,67263.0,2.3042982]
[1718649306466,0.00355,67264.0,67263.0,2.4062982]
[1718649306824,0.00163208,67269.0,67264.0,1.56644632]
[1718649306977,0.00163208,67269.0,67264.0,2.05450592]
[1718649307180,0.00163208,67269.0,67264.0,2.45384092]
[1718649307586,0.00485536,67300.0,67283.0,1.05079032]
[1718649307807,0.00485536,67300.0,67282.0,0.05]
[1718649307808,0.00485536,67300.0,67298.0,1.01111632]
[1718649308014,0.00485536,67300.0,67298.0,1.9650152]
[1718649308218,0.00485536,67300.0,67298.0,0.9073302]
[1718649308425,0.00485536,67300.0,67298.0,0.8766452]
[1718649308634,0.00485536,67300.0,67298.0,1.248257]
[1718649308849,0.00485536,67300.0,67298.0,1.545442]
[1718649309049,0.00485536,67300.0,67298.0,1.198257]
[1718649309251,0.00485536,67300.0,67298.0,1.415057]
[1718649309471,0.001162,67299.0,67298.0,1.730257]
[1718649309667,0.001162,67299.0,67298.0,1.523457]
[1718649309895,0.000162,67299.0,67298.0,0.4237682]
[1718649310088,0.000162,67299.0,67298.0,0.8695452]